[Event "*** Titled Tuesday Blitz"]
[Site "Chess.com"]
[Date "2021.03.02"]
[Round "8"]
[White "Ladislav1969"]
[Black "ErikRonka"]
[Result "0-1"]
[WhiteElo "2310"]
[BlackElo "2460"]
[TimeControl "180+1"]
[EndTime "11:28:03 PST"]
[Termination "ErikRonka won by resignation"]

1. e4 {[%clk 0:03:00.9]} 1... c6 {[%clk 0:03:00]} 2. d4 {[%clk 0:03:00.8]} 2...
d5 {[%clk 0:03:00.9]} 3. e5 {[%clk 0:03:01.5]} 3... c5 {[%clk 0:03:01.1]} 4.
dxc5 {[%clk 0:03:00.7]} 4... e6 {[%clk 0:03:01.4]} 5. Be3 {[%clk 0:02:59.7]}
5... Nd7 {[%clk 0:03:01.1]} 6. Nf3 {[%clk 0:02:56]} 6... Bxc5 {[%clk 0:03:00.3]}
7. Bxc5 {[%clk 0:02:51.8]} 7... Nxc5 {[%clk 0:03:01.2]} 8. c4 {[%clk 0:02:39.6]}
8... Ne7 {[%clk 0:02:58.9]} 9. Nc3 {[%clk 0:02:39.4]} 9... O-O {[%clk
0:02:39.8]} 10. Qd4 {[%clk 0:02:27]} 10... Qa5 {[%clk 0:02:29.5]} 11. cxd5
{[%clk 0:02:20.7]} 11... Nb3 {[%clk 0:02:00.1]} 12. axb3 {[%clk 0:02:07.3]}
12... Qxa1+ {[%clk 0:01:59.1]} 13. Nd1 {[%clk 0:02:07.8]} 13... Nxd5 {[%clk
0:01:44.3]} 14. Bd3 {[%clk 0:01:53.7]} 14... Qa5+ {[%clk 0:01:38.6]} 15. Kf1
{[%clk 0:01:31.1]} 15... Qb4 {[%clk 0:01:35]} 16. Bc4 {[%clk 0:01:22.9]} 16...
Nb6 {[%clk 0:01:14]} 17. g3 {[%clk 0:00:56.5]} 17... Bd7 {[%clk 0:01:12.9]} 18.
Ng5 {[%clk 0:00:45.8]} 18... Nxc4 {[%clk 0:01:03.1]} 19. Qxc4 {[%clk 0:00:26.8]}
19... Bb5 {[%clk 0:01:01.3]} 0-1

[Event "*** Titled Tuesday Blitz"]
[Site "Chess.com"]
[Date "2021.03.02"]
[Round "8"]
[White "djano"]
[Black "rquery98"]
[Result "0-1"]
[WhiteElo "2483"]
[BlackElo "2642"]
[TimeControl "180+1"]
[EndTime "11:28:07 PST"]
[Termination "rquery98 won by resignation"]

1. e4 {[%clk 0:03:00.9]} 1... e5 {[%clk 0:02:57.3]} 2. Nf3 {[%clk 0:03:00.2]}
2... Nc6 {[%clk 0:02:55.4]} 3. Bb5 {[%clk 0:02:59.6]} 3... a6 {[%clk 0:02:54]}
4. Ba4 {[%clk 0:02:58.2]} 4... Nge7 {[%clk 0:02:54.3]} 5. O-O {[%clk 0:02:57]}
5... g6 {[%clk 0:02:53.4]} 6. c3 {[%clk 0:02:53.9]} 6... Bg7 {[%clk 0:02:52.5]}
7. d4 {[%clk 0:02:53.4]} 7... exd4 {[%clk 0:02:53.4]} 8. cxd4 {[%clk 0:02:53.2]}
8... O-O {[%clk 0:02:40.2]} 9. d5 {[%clk 0:02:49]} 9... b5 {[%clk 0:02:30.5]}
10. Bb3 {[%clk 0:02:33.6]} 10... Na5 {[%clk 0:02:30]} 11. Bc2 {[%clk 0:02:33]}
11... d6 {[%clk 0:02:28.2]} 12. Nc3 {[%clk 0:02:19.3]} 12... h6 {[%clk 0:02:28]}
13. Rb1 {[%clk 0:02:01.9]} 13... c5 {[%clk 0:02:27.1]} 14. dxc6 {[%clk
0:01:57.2]} 14... Naxc6 {[%clk 0:02:20.6]} 15. Bf4 {[%clk 0:01:54.3]} 15... Ne5
{[%clk 0:02:09.7]} 16. h3 {[%clk 0:01:18.9]} 16... Bb7 {[%clk 0:02:09.3]} 17.
Nd5 {[%clk 0:01:10.6]} 17... Nxd5 {[%clk 0:01:59.9]} 18. exd5 {[%clk 0:01:11.5]}
18... Rc8 {[%clk 0:02:00.3]} 19. Bb3 {[%clk 0:01:05.7]} 19... Re8 {[%clk
0:01:49.3]} 20. a4 {[%clk 0:00:47.8]} 20... Nc4 {[%clk 0:01:46.7]} 21. axb5
{[%clk 0:00:45.1]} 21... axb5 {[%clk 0:01:47.6]} 22. Nd4 {[%clk 0:00:38.5]}
22... Qb6 {[%clk 0:01:34.2]} 23. Bxc4 {[%clk 0:00:38.4]} 23... Rxc4 {[%clk
0:01:30.7]} 24. Re1 {[%clk 0:00:24.4]} 24... Rxe1+ {[%clk 0:01:29.2]} 25. Qxe1
{[%clk 0:00:25.3]} 25... Qxd4 {[%clk 0:01:24.9]} 26. Qe8+ {[%clk 0:00:23.8]}
26... Kh7 {[%clk 0:01:25.3]} 27. Qxf7 {[%clk 0:00:21.9]} 27... Qxd5 {[%clk
0:01:17.6]} 0-1

[Event "*** Titled Tuesday Blitz"]
[Site "Chess.com"]
[Date "2021.03.02"]
[Round "8"]
[White "MuhittinBuker"]
[Black "XanoushX_X"]
[Result "0-1"]
[WhiteElo "2140"]
[BlackElo "2488"]
[TimeControl "180+1"]
[EndTime "11:28:09 PST"]
[Termination "XanoushX_X won by resignation"]

1. c4 {[%clk 0:03:00.9]} 1... c6 {[%clk 0:03:00.1]} 2. d4 {[%clk 0:02:58.3]}
2... d5 {[%clk 0:03:01]} 3. Nc3 {[%clk 0:02:57.4]} 3... Nf6 {[%clk 0:03:01.9]}
4. Nf3 {[%clk 0:02:56.4]} 4... e6 {[%clk 0:03:02.8]} 5. Bg5 {[%clk 0:02:55.4]}
5... a6 {[%clk 0:03:03.7]} 6. cxd5 {[%clk 0:02:54.6]} 6... exd5 {[%clk 0:03:01]}
7. e3 {[%clk 0:02:55]} 7... Be7 {[%clk 0:02:59.2]} 8. Qc2 {[%clk 0:02:54.8]}
8... O-O {[%clk 0:02:57]} 9. Bd3 {[%clk 0:02:55.2]} 9... Nbd7 {[%clk 0:02:55.8]}
10. O-O {[%clk 0:02:53.4]} 10... Re8 {[%clk 0:02:53.1]} 11. Rab1 {[%clk
0:02:47.8]} 11... Nf8 {[%clk 0:02:47.8]} 12. b4 {[%clk 0:02:45.2]} 12... Ne4
{[%clk 0:02:43.3]} 13. Bxe7 {[%clk 0:02:43.7]} 13... Qxe7 {[%clk 0:02:42.5]} 14.
Bxe4 {[%clk 0:02:43.7]} 14... dxe4 {[%clk 0:02:41.9]} 15. Nd2 {[%clk 0:02:44.1]}
15... f5 {[%clk 0:02:40.4]} 16. g3 {[%clk 0:02:42.1]} 16... g5 {[%clk
0:02:37.6]} 17. Nc4 {[%clk 0:02:38.8]} 17... Ng6 {[%clk 0:02:36.6]} 18. Nb6
{[%clk 0:02:36.5]} 18... Rb8 {[%clk 0:02:33.5]} 19. Nxc8 {[%clk 0:02:36.7]}
19... Rbxc8 {[%clk 0:02:34.4]} 20. Na4 {[%clk 0:02:35.5]} 20... f4 {[%clk
0:02:32.8]} 21. gxf4 {[%clk 0:02:30.4]} 21... gxf4 {[%clk 0:02:33.7]} 22. Kh1
{[%clk 0:02:31]} 22... f3 {[%clk 0:02:29.4]} 23. Rg1 {[%clk 0:02:30.7]} 23...
Qh4 {[%clk 0:02:29.1]} 24. Rg3 {[%clk 0:02:28.6]} 24... Rcd8 {[%clk 0:02:27.7]}
25. Rbg1 {[%clk 0:02:28.5]} 25... Rd5 {[%clk 0:02:26.6]} 26. Nc5 {[%clk
0:02:10]} 26... Rh5 {[%clk 0:02:22.8]} 27. R1g2 {[%clk 0:01:20]} 27... fxg2+
{[%clk 0:02:19.9]} 28. Rxg2 {[%clk 0:01:20.3]} 28... Rg5 {[%clk 0:01:42.1]} 29.
Rxg5 {[%clk 0:01:15.7]} 29... Qxg5 {[%clk 0:01:41.4]} 30. Nxe4 {[%clk
0:01:13.7]} 30... Qf5 {[%clk 0:01:33.9]} 31. Qc4+ {[%clk 0:00:59.5]} 31... Qe6
{[%clk 0:01:12.5]} 0-1

[Event "*** Titled Tuesday Blitz"]
[Site "Chess.com"]
[Date "2021.03.02"]
[Round "8"]
[White "redblizzard"]
[Black "pavelalexandru07"]
[Result "1-0"]
[WhiteElo "2447"]
[BlackElo "2297"]
[TimeControl "180+1"]
[EndTime "11:28:09 PST"]
[Termination "redblizzard won by resignation"]

1. e4 {[%clk 0:02:54.6]} 1... c5 {[%clk 0:02:59.8]} 2. Nf3 {[%clk 0:02:52.3]}
2... d6 {[%clk 0:02:59.4]} 3. Bc4 {[%clk 0:02:50.1]} 3... Nf6 {[%clk 0:02:56.2]}
4. d3 {[%clk 0:02:50.3]} 4... e6 {[%clk 0:02:55.8]} 5. O-O {[%clk 0:02:49.8]}
5... Be7 {[%clk 0:02:54.4]} 6. Nbd2 {[%clk 0:02:48.9]} 6... O-O {[%clk
0:02:54.6]} 7. c3 {[%clk 0:02:48.7]} 7... a6 {[%clk 0:02:52.1]} 8. Bb3 {[%clk
0:02:48.5]} 8... Nc6 {[%clk 0:02:40]} 9. Re1 {[%clk 0:02:48]} 9... Re8 {[%clk
0:02:38.8]} 10. Nf1 {[%clk 0:02:48]} 10... b5 {[%clk 0:02:36.8]} 11. Ng3 {[%clk
0:02:48.1]} 11... Bb7 {[%clk 0:02:36.1]} 12. h3 {[%clk 0:02:42.9]} 12... Qc7
{[%clk 0:02:27.5]} 13. Nh2 {[%clk 0:02:35.3]} 13... Rad8 {[%clk 0:02:23.7]} 14.
Ng4 {[%clk 0:02:34.1]} 14... d5 {[%clk 0:02:20.4]} 15. Nxf6+ {[%clk 0:02:27.9]}
15... Bxf6 {[%clk 0:02:20]} 16. Nh5 {[%clk 0:02:28.8]} 16... dxe4 {[%clk
0:01:55]} 17. Nxf6+ {[%clk 0:02:25.2]} 17... gxf6 {[%clk 0:01:55.9]} 18. Qg4+
{[%clk 0:02:15.9]} 18... Kh8 {[%clk 0:01:55.4]} 19. dxe4 {[%clk 0:02:15.8]}
19... Ne5 {[%clk 0:01:44.1]} 20. Qf4 {[%clk 0:02:15.3]} 20... Qe7 {[%clk
0:01:38]} 21. Bc2 {[%clk 0:02:03.8]} 21... c4 {[%clk 0:01:20.1]} 22. Be3 {[%clk
0:02:02.4]} 22... Rg8 {[%clk 0:01:03.8]} 23. Bd4 {[%clk 0:01:56]} 23... Rg5
{[%clk 0:00:40.6]} 24. f3 {[%clk 0:01:45]} 24... Rdg8 {[%clk 0:00:38.5]} 25. Re2
{[%clk 0:01:40.3]} 25... Nd7 {[%clk 0:00:26.7]} 26. Qc7 {[%clk 0:01:33]} 26...
Ba8 {[%clk 0:00:23.1]} 27. Rd1 {[%clk 0:01:32.1]} 27... e5 {[%clk 0:00:23.1]}
28. Be3 {[%clk 0:01:27.3]} 1-0

[Event "*** Titled Tuesday Blitz"]
[Site "Chess.com"]
[Date "2021.03.02"]
[Round "8"]
[White "wannabe2700"]
[Black "googlegoom"]
[Result "1-0"]
[WhiteElo "2703"]
[BlackElo "2467"]
[TimeControl "180+1"]
[EndTime "11:28:10 PST"]
[Termination "wannabe2700 won by resignation"]

1. b3 {[%clk 0:03:00.9]} 1... b6 {[%clk 0:02:59.4]} 2. Bb2 {[%clk 0:03:00.6]}
2... Bb7 {[%clk 0:02:59.5]} 3. e3 {[%clk 0:03:00]} 3... e6 {[%clk 0:03:00]} 4.
f4 {[%clk 0:03:00.3]} 4... Nf6 {[%clk 0:02:59.2]} 5. Nf3 {[%clk 0:03:00.8]} 5...
Be7 {[%clk 0:02:59.6]} 6. Be2 {[%clk 0:03:01.3]} 6... c5 {[%clk 0:02:59.9]} 7.
O-O {[%clk 0:03:01.9]} 7... O-O {[%clk 0:02:59.6]} 8. Qe1 {[%clk 0:02:59.5]}
8... Nc6 {[%clk 0:02:58.8]} 9. Qg3 {[%clk 0:02:59.8]} 9... Ne8 {[%clk
0:02:57.2]} 10. d3 {[%clk 0:02:58.9]} 10... Bf6 {[%clk 0:02:57]} 11. Ne5 {[%clk
0:02:58.1]} 11... d6 {[%clk 0:02:54.9]} 12. Nxc6 {[%clk 0:02:58]} 12... Bxc6
{[%clk 0:02:53.6]} 13. c3 {[%clk 0:02:57.7]} 13... b5 {[%clk 0:02:52.7]} 14. e4
{[%clk 0:02:56.2]} 14... a5 {[%clk 0:02:48.8]} 15. e5 {[%clk 0:02:56.5]} 15...
dxe5 {[%clk 0:02:47.8]} 16. fxe5 {[%clk 0:02:57.4]} 16... Be7 {[%clk 0:02:48.2]}
17. Nd2 {[%clk 0:02:56.7]} 17... a4 {[%clk 0:02:26.6]} 18. Bf3 {[%clk
0:02:52.5]} 18... Bxf3 {[%clk 0:02:14.4]} 19. Qxf3 {[%clk 0:02:53.4]} 19... Nc7
{[%clk 0:02:01.9]} 20. Ne4 {[%clk 0:02:49.7]} 20... Nd5 {[%clk 0:01:39.6]} 21.
h3 {[%clk 0:02:36.9]} 21... Qb6 {[%clk 0:01:37.8]} 22. Kh2 {[%clk 0:02:23.5]}
22... h6 {[%clk 0:01:37.3]} 23. Rab1 {[%clk 0:02:17.8]} 23... axb3 {[%clk
0:01:34.9]} 24. axb3 {[%clk 0:02:17.1]} 24... Ra2 {[%clk 0:01:35.4]} 25. Bc1
{[%clk 0:02:12.9]} 25... Qc7 {[%clk 0:01:33.6]} 26. Qg3 {[%clk 0:02:12.1]} 26...
f5 {[%clk 0:01:13.3]} 27. Bxh6 {[%clk 0:01:57.8]} 27... Bd8 {[%clk 0:00:43.5]}
28. Nd6 {[%clk 0:01:54.9]} 28... f4 {[%clk 0:00:35.8]} 29. Qg6 {[%clk
0:01:49.8]} 29... f3 {[%clk 0:00:29.4]} 30. Qxe6+ {[%clk 0:01:34.1]} 30... Kh8
{[%clk 0:00:28.3]} 31. Qxd5 {[%clk 0:01:33.9]} 31... Rxg2+ {[%clk 0:00:26.9]}
32. Kh1 {[%clk 0:01:34]} 32... gxh6 {[%clk 0:00:25.6]} 33. Rxf3 {[%clk
0:01:32.8]} 1-0

[Event "*** Titled Tuesday Blitz"]
[Site "Chess.com"]
[Date "2021.03.02"]
[Round "8"]
[White "Angel_Hranitel_37"]
[Black "BabyBoss31"]
[Result "1-0"]
[WhiteElo "2495"]
[BlackElo "2337"]
[TimeControl "180+1"]
[EndTime "11:28:10 PST"]
[Termination "Angel_Hranitel_37 won by resignation"]

1. e4 {[%clk 0:03:00.7]} 1... c6 {[%clk 0:03:00.1]} 2. d4 {[%clk 0:02:58.2]}
2... d5 {[%clk 0:03:01]} 3. e5 {[%clk 0:02:58.5]} 3... c5 {[%clk 0:02:51.4]} 4.
c4 {[%clk 0:02:59]} 4... cxd4 {[%clk 0:02:46]} 5. Nf3 {[%clk 0:02:57]} 5... Bg4
{[%clk 0:02:27]} 6. Qxd4 {[%clk 0:02:55.8]} 6... Bxf3 {[%clk 0:02:24.7]} 7. gxf3
{[%clk 0:02:56.7]} 7... Nc6 {[%clk 0:02:25.1]} 8. Qxd5 {[%clk 0:02:56.5]} 8...
Qxd5 {[%clk 0:02:15.5]} 9. cxd5 {[%clk 0:02:57.4]} 9... Nxe5 {[%clk 0:02:13.9]}
10. Bb5+ {[%clk 0:02:58.3]} 10... Nd7 {[%clk 0:02:14]} 11. Nc3 {[%clk
0:02:57.9]} 11... a6 {[%clk 0:02:14.1]} 12. Bxd7+ {[%clk 0:02:56.1]} 12... Kxd7
{[%clk 0:02:15]} 13. Be3 {[%clk 0:02:54.6]} 13... Nf6 {[%clk 0:02:12.9]} 14.
O-O-O {[%clk 0:02:54.3]} 14... Rc8 {[%clk 0:02:11.8]} 15. f4 {[%clk 0:02:50.5]}
15... e6 {[%clk 0:02:11]} 16. dxe6+ {[%clk 0:02:50]} 16... Kxe6 {[%clk
0:02:11.9]} 17. Kc2 {[%clk 0:02:48.2]} 17... Bb4 {[%clk 0:02:08.4]} 18. Rhg1
{[%clk 0:02:44.2]} 18... g6 {[%clk 0:02:02.5]} 19. Rg5 {[%clk 0:02:35.3]} 19...
Bxc3 {[%clk 0:01:38.9]} 20. bxc3 {[%clk 0:02:36.2]} 20... Nd7 {[%clk 0:01:39.6]}
21. Rgd5 {[%clk 0:02:35.3]} 21... Rc7 {[%clk 0:01:34.8]} 22. f5+ {[%clk
0:02:27.1]} 22... gxf5 {[%clk 0:01:30.4]} 23. Bf4 {[%clk 0:02:27.3]} 23... Rhc8
{[%clk 0:01:20.6]} 24. Rd6+ {[%clk 0:02:07.5]} 24... Ke7 {[%clk 0:01:18.5]} 25.
Re1+ {[%clk 0:02:08.4]} 25... Kf8 {[%clk 0:01:02.8]} 26. Bh6+ {[%clk 0:02:08.8]}
26... Kg8 {[%clk 0:01:00.4]} 27. Rg1+ {[%clk 0:02:09.4]} 27... Kh8 {[%clk
0:01:00.9]} 28. Bg7+ {[%clk 0:02:09.8]} 28... Kg8 {[%clk 0:01:01.5]} 29. Rd5
{[%clk 0:01:51.4]} 29... Nf8 {[%clk 0:00:56.1]} 30. Be5+ {[%clk 0:01:48.9]}
30... Ng6 {[%clk 0:00:56.7]} 31. Bxc7 {[%clk 0:01:49.4]} 31... Rxc7 {[%clk
0:00:57.6]} 32. Rxf5 {[%clk 0:01:48.1]} 32... Rc4 {[%clk 0:00:55.1]} 33. Rd1
{[%clk 0:01:43.6]} 33... Rc7 {[%clk 0:00:37.4]} 34. Rd4 {[%clk 0:01:40]} 34...
Kg7 {[%clk 0:00:37.1]} 35. h4 {[%clk 0:01:40.3]} 35... Re7 {[%clk 0:00:36.4]}
36. h5 {[%clk 0:01:35.6]} 36... Nf8 {[%clk 0:00:36]} 37. Rg4+ {[%clk 0:01:32]}
37... Kh8 {[%clk 0:00:33.7]} 38. Rfg5 {[%clk 0:01:32.3]} 1-0

[Event "*** Titled Tuesday Blitz"]
[Site "Chess.com"]
[Date "2021.03.02"]
[Round "8"]
[White "pedro_nascimento85"]
[Black "Alexandercs432"]
[Result "1-0"]
[WhiteElo "2101"]
[BlackElo "2167"]
[TimeControl "180+1"]
[EndTime "11:28:15 PST"]
[Termination "pedro_nascimento85 won by resignation"]

1. d4 {[%clk 0:03:00.9]} 1... Nf6 {[%clk 0:02:58.8]} 2. c4 {[%clk 0:02:59.6]}
2... e6 {[%clk 0:02:58.3]} 3. Nc3 {[%clk 0:02:50.3]} 3... Bb4 {[%clk 0:02:58.6]}
4. Qc2 {[%clk 0:02:28.4]} 4... O-O {[%clk 0:02:57.6]} 5. e4 {[%clk 0:02:19.4]}
5... d5 {[%clk 0:02:57.1]} 6. e5 {[%clk 0:02:13.3]} 6... Ne4 {[%clk 0:02:57.2]}
7. cxd5 {[%clk 0:02:11.3]} 7... exd5 {[%clk 0:02:52.2]} 8. Bd3 {[%clk
0:02:09.4]} 8... c5 {[%clk 0:02:52.1]} 9. a3 {[%clk 0:02:05.9]} 9... Bxc3+
{[%clk 0:02:49.6]} 10. bxc3 {[%clk 0:02:05.1]} 10... cxd4 {[%clk 0:02:47]} 11.
cxd4 {[%clk 0:02:04.6]} 11... Nc6 {[%clk 0:02:38.2]} 12. Ne2 {[%clk 0:01:58.9]}
12... f5 {[%clk 0:02:31.7]} 13. O-O {[%clk 0:01:54.9]} 13... Be6 {[%clk
0:02:21]} 14. f3 {[%clk 0:01:01.8]} 14... Ng5 {[%clk 0:02:20.4]} 15. Be3 {[%clk
0:00:56.2]} 15... g6 {[%clk 0:02:13.4]} 16. Qd2 {[%clk 0:00:51.9]} 16... Nf7
{[%clk 0:02:11.6]} 17. Nf4 {[%clk 0:00:51.6]} 17... Re8 {[%clk 0:02:09.2]} 18.
Rfc1 {[%clk 0:00:52]} 18... Rc8 {[%clk 0:02:08.9]} 19. Rab1 {[%clk 0:00:52.3]}
19... Na5 {[%clk 0:01:51.2]} 20. Nxe6 {[%clk 0:00:46.8]} 20... Rxe6 {[%clk
0:01:50.3]} 21. Rxc8 {[%clk 0:00:45.1]} 21... Qxc8 {[%clk 0:01:49.1]} 22. Qxa5
{[%clk 0:00:44.6]} 22... Qd7 {[%clk 0:01:35.6]} 23. Qxa7 {[%clk 0:00:40.6]}
23... Nd8 {[%clk 0:01:34.3]} 24. a4 {[%clk 0:00:23.2]} 24... Kg7 {[%clk
0:01:32.9]} 25. Bb5 {[%clk 0:00:22.2]} 25... Re7 {[%clk 0:01:33.8]} 26. Bxd7
{[%clk 0:00:21.2]} 26... Rxd7 {[%clk 0:01:34.7]} 27. Rc1 {[%clk 0:00:19]} 27...
Ne6 {[%clk 0:01:34.3]} 28. Qb6 {[%clk 0:00:18.9]} 28... Rf7 {[%clk 0:01:28.4]}
29. Qxe6 {[%clk 0:00:18.1]} 1-0

[Event "*** Titled Tuesday Blitz"]
[Site "Chess.com"]
[Date "2021.03.02"]
[Round "8"]
[White "zim0ne"]
[Black "Chesspirate_Channel"]
[Result "0-1"]
[WhiteElo "2496"]
[BlackElo "2364"]
[TimeControl "180+1"]
[EndTime "11:28:16 PST"]
[Termination "Chesspirate_Channel won by checkmate"]

1. e4 {[%clk 0:02:47.1]} 1... e5 {[%clk 0:01:41.6]} 2. Nf3 {[%clk 0:02:46.5]}
2... d5 {[%clk 0:01:41.7]} 3. Nxe5 {[%clk 0:02:45.7]} 3... Bd6 {[%clk
0:01:40.8]} 4. d4 {[%clk 0:02:45.4]} 4... dxe4 {[%clk 0:01:41.1]} 5. Bc4 {[%clk
0:02:45.1]} 5... Bxe5 {[%clk 0:01:40.8]} 6. dxe5 {[%clk 0:02:45.8]} 6... Qxd1+
{[%clk 0:01:41.7]} 7. Kxd1 {[%clk 0:02:46.7]} 7... Nc6 {[%clk 0:01:42.3]} 8. Re1
{[%clk 0:02:46.2]} 8... Bg4+ {[%clk 0:01:41.9]} 9. f3 {[%clk 0:02:44.8]} 9...
exf3 {[%clk 0:01:40.9]} 10. gxf3 {[%clk 0:02:44.3]} 10... Bxf3+ {[%clk
0:01:41.1]} 11. Kd2 {[%clk 0:02:44.1]} 11... O-O-O+ {[%clk 0:01:36.6]} 12. Kc3
{[%clk 0:02:41.9]} 12... Bh5 {[%clk 0:01:35.3]} 13. Bg5 {[%clk 0:02:39.2]} 13...
Re8 {[%clk 0:01:34]} 14. Bf4 {[%clk 0:02:39.3]} 14... Nge7 {[%clk 0:01:32.8]}
15. Bg3 {[%clk 0:02:30.8]} 15... Nf5 {[%clk 0:01:31]} 16. Bf4 {[%clk 0:02:21.4]}
16... h6 {[%clk 0:01:20.8]} 17. e6 {[%clk 0:02:18.7]} 17... f6 {[%clk
0:01:20.5]} 18. Na3 {[%clk 0:02:17.6]} 18... g5 {[%clk 0:01:20]} 19. Bd2 {[%clk
0:02:15.2]} 19... Ne5 {[%clk 0:01:17.4]} 20. Bb3 {[%clk 0:02:15]} 20... Nf3
{[%clk 0:01:15.9]} 21. Re4 {[%clk 0:02:05]} 21... Nxd2 {[%clk 0:01:07.6]} 22.
Kxd2 {[%clk 0:02:05.9]} 22... Rd8+ {[%clk 0:01:08]} 23. Kc3 {[%clk 0:02:05.6]}
23... Nd6 {[%clk 0:01:04.4]} 24. Re3 {[%clk 0:01:58.5]} 24... f5 {[%clk
0:01:04.5]} 25. Rae1 {[%clk 0:01:49.5]} 25... Ne4+ {[%clk 0:01:03.3]} 26. Kb4
{[%clk 0:01:48.2]} 26... c5+ {[%clk 0:00:54.7]} 27. Ka5 {[%clk 0:01:46.4]} 27...
b6+ {[%clk 0:00:48.5]} 28. Ka6 {[%clk 0:01:44.6]} 28... Kb8 {[%clk 0:00:31.8]}
29. Nc4 {[%clk 0:01:38.4]} 29... Be8 {[%clk 0:00:29.1]} 30. Ne5 {[%clk
0:01:37.5]} 30... c4 {[%clk 0:00:22.4]} 31. Bxc4 {[%clk 0:01:29.6]} 31... Nc5#
{[%clk 0:00:21.6]} 0-1

[Event "*** Titled Tuesday Blitz"]
[Site "Chess.com"]
[Date "2021.03.02"]
[Round "8"]
[White "muchojogo"]
[Black "sergeikim"]
[Result "0-1"]
[WhiteElo "2369"]
[BlackElo "2528"]
[TimeControl "180+1"]
[EndTime "11:28:20 PST"]
[Termination "sergeikim won by checkmate"]

1. e4 {[%clk 0:03:00.9]} 1... e5 {[%clk 0:02:59.8]} 2. Nf3 {[%clk 0:03:00.9]}
2... Nc6 {[%clk 0:02:59.7]} 3. Bc4 {[%clk 0:03:01]} 3... Bc5 {[%clk 0:02:58.8]}
4. c3 {[%clk 0:03:01.1]} 4... Nf6 {[%clk 0:02:58.7]} 5. d4 {[%clk 0:03:01.7]}
5... exd4 {[%clk 0:02:58.1]} 6. e5 {[%clk 0:03:02.4]} 6... d5 {[%clk 0:02:57.5]}
7. Bb5 {[%clk 0:03:02.9]} 7... Ne4 {[%clk 0:02:57.3]} 8. cxd4 {[%clk 0:03:03.5]}
8... Bb6 {[%clk 0:02:56.4]} 9. Nc3 {[%clk 0:03:03.9]} 9... O-O {[%clk
0:02:55.8]} 10. Be3 {[%clk 0:03:02.9]} 10... Bg4 {[%clk 0:02:52.9]} 11. h3
{[%clk 0:03:03.1]} 11... Bh5 {[%clk 0:02:52.1]} 12. Qc2 {[%clk 0:03:03.6]} 12...
Bg6 {[%clk 0:02:51]} 13. Qb3 {[%clk 0:03:02.8]} 13... Ne7 {[%clk 0:02:44.2]} 14.
O-O {[%clk 0:02:55.7]} 14... c6 {[%clk 0:02:34.3]} 15. Be2 {[%clk 0:02:55.5]}
15... Nf5 {[%clk 0:02:30.9]} 16. Rad1 {[%clk 0:02:36.7]} 16... Nxe3 {[%clk
0:02:21.1]} 17. fxe3 {[%clk 0:02:37.6]} 17... Ng3 {[%clk 0:01:57]} 18. Rf2
{[%clk 0:02:37.1]} 18... Nxe2+ {[%clk 0:01:56.7]} 19. Rxe2 {[%clk 0:02:38]}
19... f6 {[%clk 0:01:54.4]} 20. Ree1 {[%clk 0:02:26.9]} 20... Bh5 {[%clk
0:01:51.7]} 21. g4 {[%clk 0:02:00.1]} 21... fxe5 {[%clk 0:01:39]} 22. Nxe5
{[%clk 0:01:59.4]} 22... Qh4 {[%clk 0:01:33.7]} 23. Qc2 {[%clk 0:01:39.3]} 23...
Bg6 {[%clk 0:01:02.7]} 24. Qg2 {[%clk 0:01:38.9]} 24... Ba5 {[%clk 0:00:59.5]}
25. Rf1 {[%clk 0:01:37.9]} 25... Bxc3 {[%clk 0:00:54.7]} 26. bxc3 {[%clk
0:01:38.8]} 26... Be4 {[%clk 0:00:53.9]} 27. Qh2 {[%clk 0:01:37.4]} 27... h5
{[%clk 0:00:40.1]} 28. Rxf8+ {[%clk 0:01:34.2]} 28... Rxf8 {[%clk 0:00:38.7]}
29. Rf1 {[%clk 0:01:35.1]} 29... Rxf1+ {[%clk 0:00:36.1]} 30. Kxf1 {[%clk
0:01:36]} 30... hxg4 {[%clk 0:00:34.9]} 31. Nxg4 {[%clk 0:01:34.9]} 31... Bd3+
{[%clk 0:00:29.6]} 32. Kg1 {[%clk 0:01:30.9]} 32... Qe1+ {[%clk 0:00:28.4]} 33.
Kg2 {[%clk 0:01:29.8]} 33... Be4# {[%clk 0:00:16.5]} 0-1

[Event "*** Titled Tuesday Blitz"]
[Site "Chess.com"]
[Date "2021.03.02"]
[Round "8"]
[White "CM_rui"]
[Black "salomez"]
[Result "1-0"]
[WhiteElo "2344"]
[BlackElo "2214"]
[TimeControl "180+1"]
[EndTime "11:28:22 PST"]
[Termination "CM_rui won on time"]

1. e4 {[%clk 0:03:00.9]} 1... c5 {[%clk 0:02:58.2]} 2. Nf3 {[%clk 0:03:00.2]}
2... e6 {[%clk 0:02:58.1]} 3. c4 {[%clk 0:02:58.9]} 3... Nc6 {[%clk 0:02:55.7]}
4. d4 {[%clk 0:02:57.2]} 4... cxd4 {[%clk 0:02:52.8]} 5. Nxd4 {[%clk 0:02:58.1]}
5... Nf6 {[%clk 0:02:46.3]} 6. Nc3 {[%clk 0:02:58.3]} 6... Qb6 {[%clk
0:02:40.3]} 7. Be3 {[%clk 0:02:43.7]} 7... Qxb2 {[%clk 0:02:38.3]} 8. Ndb5
{[%clk 0:02:26.5]} 8... Bb4 {[%clk 0:02:36]} 9. Bd2 {[%clk 0:02:25.5]} 9... Nd4
{[%clk 0:00:23.1]} 10. Rb1 {[%clk 0:01:53.1]} 10... Nxb5 {[%clk 0:00:20.3]} 11.
Rxb2 {[%clk 0:01:38.6]} 11... Nxc3 {[%clk 0:00:18.1]} 12. Qc2 {[%clk 0:01:37.7]}
12... Ncxe4 {[%clk 0:00:04.9]} 13. Bxb4 {[%clk 0:01:35.4]} 13... a5 {[%clk
0:00:04]} 14. Ba3 {[%clk 0:01:34.2]} 14... d6 {[%clk 0:00:04.3]} 15. f3 {[%clk
0:01:32.7]} 15... Nc5 {[%clk 0:00:03.7]} 16. Bd3 {[%clk 0:01:25.6]} 16... Bd7
{[%clk 0:00:03.3]} 17. O-O {[%clk 0:01:24.7]} 17... Bc6 {[%clk 0:00:03.5]} 18.
Bxc5 {[%clk 0:01:17.7]} 18... dxc5 {[%clk 0:00:03.3]} 19. Be4 {[%clk 0:01:13.4]}
19... Nxe4 {[%clk 0:00:02.3]} 20. fxe4 {[%clk 0:01:14.3]} 20... O-O {[%clk
0:00:02.5]} 21. e5 {[%clk 0:01:13.6]} 21... Rfd8 {[%clk 0:00:01.6]} 22. Qf2
{[%clk 0:01:10.4]} 1-0